fUSD/lending_fUSD_20241013
["ID","MTS","AMOUNT","RATE_DAILY","PERIOD"]
[340200117,1728829839178,-534.96,0.000109,2]
[340200118,1728829839187,-424.09,0.000109,2]
[340200119,1728829839195,-150.0,0.000109,2]
[340200120,1728829839205,-359.17,0.000109,2]
[340200121,1728829839214,-429.55,0.000109,2]
[340200122,1728829839223,-755.74,0.000109,2]
[340200123,1728829839232,-500.0,0.0001093,2]
[340200124,1728829839242,-500.0,0.00010938,2]
[340200125,1728829839251,-500.0,0.00010947,2]
[340200126,1728829839259,-500.0,0.00010956,2]
[340200127,1728829839268,-843.3,0.00010959,2]
[340200128,1728829839277,-176.78,0.00010959,2]
[340200129,1728829839286,-500.0,0.00010959,2]
[340200130,1728829839295,-150.0,0.00010959,2]
[340200131,1728829839304,-250.0,0.00010959,2]
[340200132,1728829839312,-2000.0,0.00010959,2]
[340200133,1728829839322,-155.48,0.00010959,2]
[340200134,1728829839331,-500.0,0.00010965,2]
[340200135,1728829839340,-500.0,0.00010973,2]
[340200136,1728829839348,-231.45060589,0.00010973,2]
[340200137,1728829839357,-500.0,0.00010974,2]
[340200138,1728829839366,-500.0,0.00010982,2]
[340200139,1728829839376,-5800.0,0.00010983,2]
[340200140,1728829839385,-500.0,0.00010991,2]
[340200141,1728829839394,-5800.0,0.00010992,2]
[340200142,1728829839403,-1425.22087068,0.00010997,2]
[340200143,1728829839412,-7007.86337263,0.00010998,2]
[340200144,1728829839421,-71250.15,0.00010999,2]
[340200145,1728829839430,-6328.665,0.00010999,2]
[340200146,1728829839439,-260.50813024,0.00010999,2]
[340200147,1728829839448,-1000.0,0.00011,2]
[340200148,1728829839457,-1000.0,0.00011,2]
[340200149,1728829839467,-1000.0,0.00011,2]
[340200150,1728829839476,-1000.0,0.00011,2]
[340200151,1728829839485,-1000.0,0.00011,2]
[340200152,1728829839496,-1000.0,0.00011,2]
[340200153,1728829839505,-1000.0,0.00011,2]
[340200154,1728829839515,-1000.0,0.00011,2]
[340200155,1728829839523,-1000.0,0.00011,2]
[340200156,1728829839533,-1000.0,0.00011,2]
[340200157,1728829839542,-1000.0,0.00011,2]
[340200158,1728829839551,-1000.0,0.00011,2]
[340200159,1728829839689,-1000.0,0.00011,2]
[340200160,1728829839698,-1000.0,0.00011,2]
[340200161,1728829839707,-1000.0,0.00011,2]
[340200162,1728829839717,-1000.0,0.00011,2]
[340200163,1728829839726,-1000.0,0.00011,2]
[340200164,1728829839735,-1000.0,0.00011,2]
[340200165,1728829839747,-1000.0,0.00011,2]
[340200166,1728829839756,-1000.0,0.00011,2]
[340200167,1728829839765,-1000.0,0.00011,2]
[340200168,1728829839774,-1000.0,0.00011,2]
[340200169,1728829839783,-1000.0,0.00011,2]
[340200170,1728829839792,-1000.0,0.00011,2]
[340200171,1728829839801,-1000.0,0.00011,2]
[340200172,1728829839810,-1000.0,0.00011,2]
[340200173,1728829839819,-1000.0,0.00011,2]
[340200174,1728829839829,-1000.0,0.00011,2]
[340200175,1728829839838,-1000.0,0.00011,2]
[340200177,1728829839847,-1000.0,0.00011,2]
[340200178,1728829839856,-1000.0,0.00011,2]
[340200179,1728829839865,-1000.0,0.00011,2]
[340200180,1728829839874,-1000.0,0.00011,2]
[340200181,1728829839885,-1000.0,0.00011,2]
[340200182,1728829839896,-1000.0,0.00011,2]
[340200183,1728829839905,-1000.0,0.00011,2]
[340200184,1728829839914,-1000.0,0.00011,2]
[340200185,1728829839923,-1000.0,0.00011,2]
[340200186,1728829839934,-1000.0,0.00011,2]
[340200187,1728829839943,-1000.0,0.00011,2]
[340200188,1728829839952,-1000.0,0.00011,2]
[340200189,1728829839962,-1000.0,0.00011,2]
[340200191,1728829839972,-927.0,0.00011,2]
[340200192,1728829839981,-119361.86483969,0.00011,2]
[340200193,1728829839992,-1055513.95080697,0.00011,2]
[340200194,1728829840005,-1147347.01545081,0.00011,2]
[340200195,1728829840015,-1007.19865098,0.00011,2]
[340200196,1728829840026,-29838.86852145,0.00011,2]
[340200197,1728829840067,-289.6333911,0.00011,2]
[340200198,1728829840161,-13135.80636779,0.00011,2]
[340200199,1728829840173,-2414.47484465,0.00011,2]
[340200200,1728829840183,-13026.98897814,0.00011,2]
[340200201,1728829840195,-792.81019852,0.00011,2]
[340200202,1728829840318,-1525.9999996,0.00011,2]
[340200203,1728829840329,-2717.49101616,0.00011,2]
[340200208,1728829843194,-3026.9116978,0.00011,2]
[340200209,1728829843206,-66009.25347225,0.00011,2]
[340200210,1728829843217,-1461840.13602688,0.00011,2]
[340200211,1728829843227,-859.91829659,0.00011,2]
[340200212,1728829843304,-88151.48793918,0.00011,2]
[340200213,1728829843314,-348736.89357285,0.00011,2]
[340200214,1728829843523,-44904.20648861,0.00011,2]
[340200222,1728829846125,-348.52941597,0.00010999,2]
[340200224,1728829846210,-8730.55605379,0.00010999,2]
[340200225,1728829846220,-3651.34724437,0.00011,2]
[340200226,1728829846231,-38843.37112187,0.00011,2]
[340200227,1728829846294,-3165.32762847,0.00011,2]
[340200228,1728829846310,-690.600222,0.00011,2]
[340200282,1728830186874,179.91,8.643e-05,2]
[340200386,1728830743419,550.0,0.0001,2]
[340200387,1728830786514,196.14,8.436e-05,2]
[340200534,1728831032416,-364.48,0.00010298,2]
[340200535,1728831032426,-402.64497673,0.00010298,2]
[340200536,1728831032435,-182.24,0.00010331,2]
[340200537,1728831032447,-480.52,0.00010351,2]
[340200538,1728831032456,-170.89,0.0001053,2]
[340200539,1728831032466,-1000.0,0.0001058,2]
[340200540,1728831032476,-196.14,0.000107,2]
[340200541,1728831032485,-150.0,0.00010899,2]
[340200542,1728831032495,-300.0,0.00010899,2]
[340200543,1728831032505,-746.4424,0.000109,2]
[340200544,1728831032514,-1186.6985,0.000109,2]
[340200545,1728831032524,-252.68243954,0.000109,2]
[340200546,1728831032536,-1212.26099872,0.000109,2]
[340200547,1728831032545,-389.07983752,0.000109,2]
[340200548,1728831032554,-172.07133922,0.000109,2]
[340200549,1728831032564,-175.06,0.00010959,2]
[340200550,1728831032577,-176.78,0.00010959,2]
[340200551,1728831032587,-155.18,0.00010959,2]
[340200552,1728831032596,-674.64,0.00010959,2]
[340200553,1728831032606,-499.99,0.00010973,2]
[340200554,1728831032615,-500.0,0.00010973,2]
[340200555,1728831032624,-199.15185176,0.0001099,2]
[340200556,1728831032634,-107425.67835572,0.00011,2]
[340200557,1728831032645,-123198.34388339,0.00011,2]
[340200559,1728831032655,-76026.62373366,0.00011,2]
[340200561,1728831032666,-4873.99515114,0.00011,2]
[340200564,1728831032689,-1121.76639476,0.00011,2]
[340200567,1728831032707,-1251.92474097,0.00011,2]
[340200626,1728831038415,-3243.407536,0.00011,2]
[340200627,1728831038426,-4032.83102732,0.00011,2]
[340200628,1728831038541,-524.26956512,0.00011,2]
[340200629,1728831038552,-3132.129,0.00011,2]
[340200630,1728831038607,-118.1548196,0.00011,2]
[340200631,1728831038711,-4545.2144916,0.00011,2]
[340200632,1728831038722,-2126.6253212,0.00011,2]
[340200633,1728831038733,-23268.66793434,0.00011,2]
[340200634,1728831038744,-386.65081412,0.00011,2]
[340200688,1728831040388,-651.4299,0.000109,2]
[340200689,1728831040398,-1203.5701,0.00011,2]
[340200690,1728831040542,-650.5516089,0.00011,2]
[340200739,1728831043957,-1250.0,0.00011,2]
[340200740,1728831044077,-25990.29998855,0.00011,2]
[340200741,1728831044108,-396.6954275,0.00011,2]
[340200742,1728831044139,-554787.00000034,0.00011,2]
[340200745,1728831046360,-500.0,0.000109,2]
[340200748,1728831046476,-6632.92788754,0.000109,2]
[340200749,1728831046488,-488.16402403,0.000109,2]
[340200750,1728831046500,-7533.79919372,0.000109,2]
[340200751,1728831046595,-564.3445358,0.000109,2]
[340200752,1728831046607,-1570.24508,0.000109,2]
[340200753,1728831046701,-21378.29164514,0.000109,2]
[340200754,1728831046728,-427.35158971,0.000109,2]
[340200755,1728831046740,-3554.90218835,0.000109,2]
[340200765,1728831075936,1113.4325,0.00010198,2]
[340200770,1728831426279,200.49,8.499e-05,2]
[340201847,1728831819157,23890.0,0.00010194,2]
[340201848,1728832001983,150.0,9.888e-05,2]
[340201850,1728832179302,212.96,8.331e-05,2]
[340201854,1728832231488,-240.26,0.00010249,2]
[340201855,1728832231497,-250.0,0.00010251,2]
[340201856,1728832231507,-291.58,0.00010252,2]
[340201857,1728832231517,-170.89,0.0001028,2]
[340201858,1728832231526,-1000.0,0.00010282,2]
[340201859,1728832231535,-212.96,0.00010595,2]
[340201860,1728832231544,-150.0,0.00010899,2]
[340201861,1728832231554,-300.0,0.00010899,2]
[340201862,1728832231563,-125.43350871,0.000109,2]
[340201863,1728832231579,-306.8125,0.000109,2]
[340201864,1728832231591,-312.185,0.000109,2]
[340201865,1728832231632,-848.80884513,0.000109,2]
[340201866,1728832231679,-754.06265944,0.000109,2]
[340201867,1728832231727,-3155.64708672,0.000109,2]
[340201868,1728832231737,-790.0034,0.000109,2]
[340201869,1728832231746,-4856.7053,0.000109,2]
[340201870,1728832231755,-2059.1038,0.000109,2]
[340201871,1728832231765,-962.6503,0.000109,2]
[340201872,1728832231774,-9441.59899905,0.000109,2]
[340201873,1728832231785,-518.34734357,0.000109,2]
[340201874,1728832231796,-3788.0965427,0.000109,2]
[340201922,1728832232874,150.0,0.00010092,2]
[340201923,1728832232896,55.22593,0.00010092,2]
[340201927,1728832237526,-878.69942469,0.000109,2]
[340201928,1728832237566,-1363.02997939,0.000109,2]
[340201929,1728832237578,-3953.66766631,0.000109,2]
[340201930,1728832237587,-58.27547369,0.000109,2]
[340201931,1728832237606,-246.01952631,0.000109,2]
[340201932,1728832237615,-1012.17967613,0.000109,2]
[340201933,1728832237624,-323.13839639,0.000109,2]
[340201934,1728832237634,-150.0,0.000109,2]
[340201935,1728832237642,-429.55,0.000109,2]
[340201936,1728832237651,-359.17,0.000109,2]
[340201937,1728832237660,-416.7,0.000109,2]
[340201938,1728832237669,-150.0,0.000109,2]
[340201939,1728832237678,-151.72,0.000109,2]
[340201940,1728832237687,-359.17,0.000109,2]
[340201941,1728832237698,-852.16,0.000109,2]
[340201942,1728832237707,-820.96,0.000109,2]
[340201943,1728832237716,-6104.2549,0.000109,2]
[340201944,1728832237725,-1868.90202245,0.000109,2]
[340201945,1728832237735,-239.99603434,0.000109,2]
[340201946,1728832237744,-2187.0851395,0.000109,2]
[340201947,1728832237755,-1261.32070091,0.000109,2]
[340201948,1728832237766,-7626.19378738,0.000109,2]
[340201949,1728832237777,-2546.6,0.000109,2]
[340201950,1728832237886,-6327.72841084,0.000109,2]
[340201951,1728832238039,-156.99,0.00010959,2]
[340201952,1728832238050,-250.0,0.00010959,2]
[340201953,1728832238059,-656.77,0.00010959,2]
[340201954,1728832238069,-499.99,0.00010973,2]
[340201955,1728832238080,-567.71,0.00010973,2]
[340201956,1728832238089,-500.0,0.00010973,2]
[340201957,1728832238098,-503.97595646,0.00010973,2]
[340201958,1728832238109,-210.977,0.00010973,2]
[340201959,1728832238118,-413.02712812,0.0001099,2]
[340201960,1728832238127,-413.02712812,0.0001099,2]
[340201961,1728832238136,-413.02712812,0.0001099,2]
[340201962,1728832238145,-1233.84656009,0.00010999,2]
[340201963,1728832238155,-267.20370736,0.00010999,2]
[340201964,1728832238164,-500.0,0.00010999,2]
[340201965,1728832238173,-501.17066642,0.00010999,2]
[340201966,1728832238182,-500.0,0.00010999,2]
[340201967,1728832238191,-384.59381044,0.00010999,2]
[340201968,1728832238201,-500.0,0.00010999,2]
[340201969,1728832238210,-500.0,0.00010999,2]
[340201970,1728832238219,-500.0,0.00010999,2]
[340201971,1728832238228,-299.99999999,0.00010999,2]
[340201972,1728832238237,-113935.555657,0.00011,2]
[340201973,1728832238247,-317970.99751459,0.00011,2]
[340201974,1728832238256,-551879.54246427,0.00011,2]
[340201977,1728832239648,-353.03694084,0.00010682,2]
[340201978,1728832239658,-1524.39259952,0.00011,2]
[340201979,1728832239669,-272.81867924,0.00011,2]
[340201980,1728832239800,-459.07898494,0.00011,2]
[340201981,1728832239813,-1137.28098821,0.00011,2]
[340201982,1728832239848,-272.2495603,0.00011,2]
[340201997,1728832242766,-312.355,0.000109,2]
[340201998,1728832242777,-1991.82956413,0.000109,2]
[340201999,1728832242787,-10488.17043584,0.00011,2]
[340202000,1728832242811,-689.2999998,0.00011,2]
[340202001,1728832242823,-863179.71976639,0.00011,2]
[340202002,1728832242854,-4608.06807084,0.00011,2]
[340202003,1728832242899,-42195.161567,0.00011,2]
[340202010,1728832245546,-6192.04968,0.00011,2]
[340202011,1728832245557,-1247.2207122,0.00011,2]
[340202012,1728832245593,-431.83139995,0.00011,2]
[340202013,1728832245630,-343.6808375,0.00011,2]
[340202014,1728832245683,-6208.34880148,0.00011,2]
[340202015,1728832245694,-290.38875,0.00011,2]
[340202016,1728832245706,-1940.73829803,0.00011,2]
[340202017,1728832245727,-25449.9999,0.00011,2]
[340202018,1728832245738,-8400.0,0.00011,2]
[340202019,1728832245770,-1242.40000003,0.00011,2]
[340202021,1728832255212,150.0,0.00010149,2]
[340202022,1728832255234,268.1548196,0.00010149,2]
[340202023,1728832255256,3454.6802804,0.00010149,2]
[340202024,1728832556385,550.0,0.0001,2]
[340202043,1728832715376,250.75,8.282e-05,2]
[340202044,1728832783915,182.24,0.00010175,2]
[340202045,1728832955473,240.26,0.00010149,2]
[340202046,1728833025384,156.68,0.00010152,2]
[340202047,1728833025620,156.68,0.00010178,2]
[340202048,1728833025798,156.68,0.00010203,2]
[340202049,1728833129717,34380.19431445,0.000101,2]
[340202050,1728833152195,170.89,0.00010144,2]
[340202053,1728833213959,150.0,0.00010202,2]
[340202054,1728833213981,295.74089836,0.00010202,2]
[340202055,1728833214011,354.25910164,0.00010202,2]
[340202056,1728833239310,205.0,9.8e-05,2]
[340202057,1728833243474,246.3408474,0.000101,2]
[340202058,1728833278663,1563.92452854,0.0001,2]
[340202059,1728833284817,248.35,8.219e-05,2]
[340202060,1728833317310,212.140914,0.0001,2]
[340202091,1728833431615,-200.0,0.00010281,2]
[340202093,1728833431624,-268.87,0.00010337,2]
[340202094,1728833431634,-248.35,0.00010472,2]
[340202095,1728833431644,-3249.61949075,0.00010632,2]
[340202096,1728833431653,-150.0,0.00010732,2]
[340202097,1728833431663,-150.0,0.00010735,2]
[340202098,1728833431672,-207.98050925,0.00010762,2]
[340202099,1728833431691,-92.01949075,0.00010762,2]
[340202100,1728833431700,-150.0,0.00010765,2]
[340202101,1728833431710,-150.0,0.0001077,2]
[340202102,1728833431719,-150.0,0.00010772,2]
[340202103,1728833431728,-150.0,0.00010791,2]
[340202104,1728833431738,-49.44783065,0.00010797,2]
[340202105,1728833431749,-100.55216935,0.00010797,2]
[340202106,1728833431758,-150.0,0.00010811,2]
[340202107,1728833431767,-150.0,0.00010828,2]
[340202108,1728833431776,-118.02930218,0.00010841,2]
[340202109,1728833431787,-31.97069782,0.00010841,2]
[340202110,1728833431797,-150.0,0.00010862,2]
[340202111,1728833431807,-150.0,0.00010889,2]
[340202112,1728833431816,-155.03679,0.0001089,2]
[340202113,1728833431826,-150.0,0.00010895,2]
[340202114,1728833431835,-150.0,0.00010899,2]
[340202115,1728833431844,-262.3564,0.000109,2]
[340202116,1728833431854,-1265.07441648,0.000109,2]
[340202117,1728833431873,-552.46305185,0.000109,2]
[340202118,1728833431884,-279.69657276,0.000109,2]
[340202119,1728833431895,-1075.43,0.000109,2]
[340202120,1728833431906,-449.71619779,0.000109,2]
[340202121,1728833431917,-358.03106852,0.000109,2]
[340202122,1728833431932,-2245.50591418,0.000109,2]
[340202123,1728833431947,-264.14816684,0.000109,2]
[340202125,1728833431958,-255.97559429,0.000109,2]
[340202127,1728833431969,-2555.86561729,0.000109,2]
[340202129,1728833431978,-1184.7114,0.000109,2]
[340202131,1728833431988,-506.47194571,0.000109,2]
[340202134,1728833432006,-344.19142609,0.000109,2]
[340202136,1728833432018,-645.2515,0.000109,2]
[340202204,1728833437860,-1743.85,0.00010732,2]
[340202205,1728833437869,-5014.2413282,0.000109,2]
[340202206,1728833437879,-384.833,0.000109,2]
[340202207,1728833437887,-500.0,0.000109,2]
[340202208,1728833437896,-161.63816998,0.000109,2]
[340202209,1728833437905,-150.0,0.000109,2]
[340202210,1728833437914,-150.0,0.000109,2]
[340202211,1728833437923,-755.74,0.000109,2]
[340202212,1728833437933,-150.0,0.000109,2]
[340202213,1728833437942,-424.09,0.000109,2]
[340202214,1728833437951,-436.26,0.000109,2]
[340202215,1728833437960,-150.0,0.000109,2]
[340202216,1728833437970,-201.64,0.000109,2]
[340202217,1728833437980,-150.0,0.000109,2]
[340202218,1728833437991,-150.0,0.000109,2]
[340202219,1728833438001,-359.17,0.000109,2]
[340202220,1728833438010,-629.74,0.000109,2]
[340202221,1728833438019,-499.99,0.000109,2]
[340202222,1728833438028,-2127.19262744,0.000109,2]
[340202223,1728833438037,-323.7815659,0.000109,2]
[340202225,1728833438046,-150.0,0.00010907,2]
[340202227,1728833438055,-150.0,0.00010924,2]
[340202228,1728833438066,-150.0,0.00010941,2]
[340202229,1728833438075,-155.48,0.00010959,2]
[340202230,1728833438083,-175.06,0.00010959,2]
[340202231,1728833438092,-7.29330848,0.00010959,2]
[340202232,1728833438104,-518.11669152,0.00010959,2]
[340202233,1728833438114,-250.0,0.00010959,2]
[340202234,1728833438123,-160.76851743,0.00010965,2]
[340202235,1728833438132,-150.0,0.00010967,2]
[340202236,1728833438140,-150.0,0.00010971,2]
[340202237,1728833438149,-500.0,0.00010973,2]
[340202238,1728833438158,-250.986,0.00010973,2]
[340202239,1728833438167,-181.298,0.00010973,2]
[340202241,1728833438176,-150.0,0.0001098,2]
[340202242,1728833438189,-150.0,0.00010983,2]
[340202244,1728833438197,-1533.2558938,0.00010991,2]
[340202246,1728833438209,-264.399938,0.00010991,2]
[340202248,1728833438220,-1373.83926939,0.00010991,2]
[340202249,1728833438358,-496.742,0.00010991,2]
[340202250,1728833438530,-31331.76289881,0.00010991,2]
[340202251,1728833438540,-6801.62118449,0.00010999,2]
[340202252,1728833438550,-51159.69796786,0.00011,2]
[340202253,1728833438617,-13476.95288861,0.00011,2]
[340202254,1728833438627,-31925.2012,0.00011,2]
[340202255,1728833438641,-13565.0,0.00011,2]
[340202256,1728833438652,-5150.97823469,0.00011,2]
[340202257,1728833438661,-19377.92211531,0.00011,2]
[340202258,1728833438673,-54170.55,0.00011,2]
[340202259,1728833438688,-9553.154996,0.00011,2]
[340202260,1728833438699,-9084.2900005,0.00011,2]
[340202261,1728833438710,-13724.235,0.00011,2]
[340202262,1728833438721,-1384.75,0.00011,2]
[340202263,1728833438732,-5915.5,0.00011,2]
[340202264,1728833438743,-43654.51912359,0.00011,2]
[340202266,1728833439862,-2101.0411834,0.00011,2]
[340202267,1728833439874,-3253.4413617,0.00011,2]
[340202281,1728833440162,-4816.72006633,0.00011,2]
[340202283,1728833440173,-2292.942009,0.00011,2]
[340202538,1728833442731,-311.67,0.00011,2]
[340202551,1728833442843,-7676.92735087,0.00011,2]
[340202553,1728833442855,-108335.93381344,0.00011,2]
[340202555,1728833442865,-203164.06618656,0.00011,2]
[340202558,1728833442876,-2620.0,0.00011,2]
[340202560,1728833442888,-2180.37715403,0.00011,2]
[340202562,1728833442900,-12906.31139092,0.00011,2]
[340202564,1728833442912,-497019.9272705,0.00011,2]
[340202566,1728833442921,-386695.00851472,0.00011,2]
[340202567,1728833442932,-328.52724983,0.00011,2]
[340202568,1728833442945,-6107.63818264,0.00011,2]
[340202569,1728833442956,-12648.50162918,0.00011,2]
[340202570,1728833442968,-644.9484743,0.00011,2]
[340202798,1728833445673,-1592.03474949,0.000109,2]
[340202799,1728833445684,-286.30806871,0.000109,2]
[340202800,1728833445698,-264.06999864,0.000109,2]
[340202801,1728833445709,-1557.3,0.000109,2]
[340202802,1728833445868,-3883.50308316,0.000109,2]
[340202803,1728833445877,-245824.95026816,0.00011,2]
[340202804,1728833445886,-71527.90723644,0.00011,2]
[340202805,1728833445898,-280.5932945,0.00011,2]
[340202871,1728833756471,360.0,0.00010057,2]
[340202873,1728833848290,223.51,8.219e-05,2]
[340202874,1728833875368,250.0,0.00010054,2]
[340202876,1728833948837,150.0,9.997e-05,2]
[340202877,1728834114377,233.26,9.962e-05,2]
[340202878,1728834160608,23293.92,9.991e-05,2]
[340202880,1728834321407,150.0,0.00010006,2]
[340202881,1728834321430,289.04,0.00010006,2]
[340202882,1728834321464,272.96,0.00010006,2]
[340202883,1728834344660,234.3,8.219e-05,2]
[340202884,1728834369734,550.0,0.0001,2]
[340202894,1728834612526,180.87,0.0001,2]
[340202899,1728834631834,-549.255392,0.0001047,2]
[340202900,1728834631846,-20509.744608,0.0001047,2]
[340202901,1728834631856,-1052.22144913,0.00010477,2]
[340202902,1728834631866,-234.3,0.00010478,2]
[340202903,1728834631876,-178.8,0.00010564,2]
[340202904,1728834631887,-300.0,0.00010672,2]
[340202905,1728834631897,-2802.0804204,0.00010672,2]
[340202906,1728834631907,-290.3734,0.000107,2]
[340202907,1728834631916,-1907.1495,0.000107,2]
[340202908,1728834631926,-1000.0,0.00010799,2]
[340202909,1728834631935,-150.0,0.00010799,2]
[340202910,1728834631944,-13782.39067189,0.000108,2]
[340202911,1728834631956,-309.856558,0.000108,2]
[340202912,1728834631971,-6452.89038192,0.000108,2]
[340202913,1728834631983,-1582.04017389,0.000108,2]
[340202914,1728834631995,-2651.08139145,0.000108,2]
[340202915,1728834632009,-2537.25976177,0.000108,2]
[340202916,1728834632022,-1452.9659822,0.000108,2]
[340202917,1728834632042,-1312.66876848,0.000108,2]
[340202918,1728834632053,-6178.9825058,0.000108,2]
[340202919,1728834632064,-8606.23695535,0.000108,2]
[340202920,1728834632075,-849.97896667,0.000108,2]
[340202921,1728834632086,-360.246502,0.000108,2]
[340202922,1728834632098,-4670.58140367,0.000108,2]
[340202923,1728834632109,-5056.53000816,0.000108,2]
[340202924,1728834632120,-5409.42459508,0.000108,2]
[340202925,1728834632131,-495.72833055,0.000108,2]
[340202926,1728834632146,-58168.54294312,0.000108,2]
[340202927,1728834632155,-467.5342,0.000108,2]
[340202928,1728834632164,-7500.0,0.000108,2]
[340202929,1728834632174,-375.1026,0.000108,2]
[340202931,1728834632184,-2192.51,0.000108,2]
[340202933,1728834632194,-823.28,0.00010873,2]
[340202934,1728834632203,-500.0,0.00010873,2]
[340202936,1728834632213,-499.99,0.00010891,2]
[340202938,1728834632224,-1167.69125828,0.00010899,2]
[340202940,1728834632233,-1167.69125828,0.00010899,2]
[340202942,1728834632242,-1167.69125828,0.00010899,2]
[340202944,1728834632251,-1167.69125828,0.00010899,2]
[340202945,1728834632261,-1167.69125828,0.00010899,2]
[340202946,1728834632270,-1167.69125828,0.00010899,2]
[340202948,1728834632279,-1167.69125828,0.00010899,2]
[340202949,1728834632289,-1167.69125828,0.00010899,2]
[340202951,1728834632298,-1167.69125828,0.00010899,2]
[340202953,1728834632308,-1000.0,0.000109,2]
[340202955,1728834632317,-100000.0,0.000109,2]
[340202957,1728834632326,-500.0,0.000109,2]
[340202959,1728834632335,-107933.6571614,0.000109,2]
[340202961,1728834632346,-6225.7093259,0.000109,2]
[340202962,1728834632366,-328.4348001,0.000109,2]
[340202963,1728834632376,-418.71382403,0.000109,2]
[340202964,1728834632387,-25065.95541726,0.000109,2]
[340202965,1728834632403,-2080.63,0.000109,2]
[340202966,1728834632415,-793.44668693,0.000109,2]
[340202967,1728834632427,-1160.73125044,0.000109,2]
[340202968,1728834632448,-4312.59456803,0.000109,2]
[340202969,1728834632464,-328.01300429,0.000109,2]
[340202970,1728834632475,-9742.22354473,0.000109,2]
[340202971,1728834637878,-370.6152,0.000109,2]
[340202972,1728834637894,-581.0996,0.000109,2]
[340202973,1728834637909,-616.0766574,0.000109,2]
[340202974,1728834637924,-600.5,0.000109,2]
[340202975,1728834637941,-3219.35090957,0.000109,2]
[340202976,1728834637994,-81222.24804992,0.000109,2]
[340202977,1728834638007,-262.3564,0.000109,2]
[340202978,1728834638019,-942.0746,0.000109,2]
[340202979,1728834638032,-768.6151,0.000109,2]
[340202980,1728834638044,-7300.3133,0.000109,2]
[340202981,1728834638055,-1412.5976,0.000109,2]
[340202982,1728834638065,-174.94765681,0.000109,2]
[340202983,1728834638075,-150.0,0.000109,2]
[340202984,1728834638085,-161.63816997,0.000109,2]
[340202985,1728834638096,-160.36941333,0.000109,2]
[340202986,1728834638108,-297.55874801,0.000109,2]
[340202987,1728834638120,-297.55874801,0.000109,2]
[340202988,1728834638132,-297.55874801,0.000109,2]
[340202989,1728834638146,-297.55874801,0.000109,2]
[340202990,1728834638156,-297.55874801,0.000109,2]
[340202991,1728834638167,-297.55874801,0.000109,2]
[340202992,1728834638180,-297.55874801,0.000109,2]
[340202993,1728834638192,-297.55874801,0.000109,2]
[340202994,1728834638205,-1167.69125828,0.000109,2]
[340202995,1728834638216,-258.01456304,0.000109,2]
[340202996,1728834638228,-319.99471244,0.000109,2]
[340202997,1728834638239,-1176.65125936,0.000109,2]
[340202998,1728834638251,-1260.43426894,0.000109,2]
[340202999,1728834638263,-150.0,0.00010921,2]
[340203000,1728834638274,-585.10679756,0.00010958,2]
[340203001,1728834638301,-472.68191908,0.00010958,2]
[340203002,1728834638311,-160.0986023,0.00010958,2]
[340203003,1728834638323,-155.5,0.00010959,2]
[340203004,1728834638334,-2000.0,0.00010959,2]
[340203005,1728834638346,-420.32,0.00010959,2]
[340203006,1728834638359,-150.0,0.00010959,2]
[340203007,1728834638370,-250.0,0.00010959,2]
[340203008,1728834638381,-156.99,0.00010959,2]
[340203009,1728834638391,-176.58,0.00010959,2]